bitfinex/quotes_SOLUSD_20220109
["timestamp","ask_amount","ask_price","bid_price","bid_amount"]
[1641764400216,0.26,142.72,142.65,0.25]
[1641764400416,0.51,142.72,142.65,0.25]
[1641764401019,0.51,142.72,142.64,1.752]
[1641764401217,0.51,142.72,142.65,0.25]
[1641764401919,0.51,142.72,142.64,12.2649]
[1641764402221,0.51,142.72,142.64,10.5129]
[1641764402420,0.51,142.72,142.62,14.34452492]
[1641764402822,0.51,142.72,142.62,3.83012492]
[1641764403022,0.25,142.72,142.6,38.87312492]
[1641764403220,0.25,142.72,142.61,4.752]
[1641764403420,0.25,142.72,142.62,0.25]
[1641764404223,0.25,142.72,142.63,3.67073001]
[1641764404423,0.25,142.72,142.64,0.51]
[1641764404424,0.51,142.72,142.64,0.51]
[1641764404827,0.51,142.72,142.64,11.0233]
[1641764405245,28.46487501,142.73,142.64,11.0233]
[1641764405444,0.26,142.72,142.65,3.0]
[1641764405844,0.26,142.72,142.66,0.25]
[1641764407148,0.26,142.72,142.66,3.25]
[1641764407747,0.26,142.72,142.66,0.25]
[1641764408546,0.26,142.72,142.63,11.0234]
[1641764408748,0.26,142.72,142.63,0.51]
[1641764409249,0.51,142.72,142.62,3.83012492]
[1641764409449,5.262,142.72,142.62,3.83012492]
[1641764409649,9.94,142.71,142.62,3.83012492]
[1641764409851,26.67360366,142.7,142.62,3.83012492]
[1641764410048,29.93360366,142.7,142.6,3.83012492]
[1641764410251,28.18160366,142.7,142.6,3.83012492]
[1641764410450,28.18160366,142.7,142.61,10.5154]
[1641764410648,28.18160366,142.7,142.6,3.83012492]
[1641764410851,28.18160366,142.7,142.61,0.51]
[1641764411050,28.18160366,142.7,142.59,4.41012492]
[1641764411251,27.93160366,142.7,142.59,4.41012492]
[1641764412050,27.93160366,142.7,142.62,10.5148]
[1641764413253,0.25,142.69,142.61,3.83012492]
[1641764413655,0.25,142.69,142.62,0.25]
[1641764414054,0.25,142.69,142.61,0.25]
[1641764415656,0.25,142.69,142.59,4.34012492]
[1641764415858,10.19,142.69,142.59,3.83012492]
[1641764416059,3.0,142.68,142.59,3.83012492]
[1641764416258,27.65759779,142.67,142.59,3.83012492]
[1641764416458,0.26,142.66,142.59,3.83012492]
[1641764416758,3.26,142.66,142.59,3.83012492]
[1641764417057,0.25,142.65,142.59,3.83012492]
[1641764417256,0.25,142.65,142.58,3.96800228]
[1641764417458,0.25,142.65,142.58,4.21800228]
[1641764418059,0.25,142.65,142.56,3.83012492]
[1641764418258,10.19,142.65,142.56,3.83012492]
[1641764418460,2.012,142.64,142.56,3.83012492]
[1641764418658,22.797,142.64,142.56,3.83012492]
[1641764418859,10.7735,142.63,142.56,3.96610504]
[1641764419057,14.692,142.62,142.56,3.96610504]
[1641764419258,14.952,142.62,142.56,3.96610504]
[1641764419460,0.25,142.61,142.56,3.96610504]
[1641764419658,11.692,142.6,142.56,3.96610504]
[1641764419861,23.57275586,142.59,142.5,3.96610504]
[1641764420060,36.77275586,142.59,142.5,3.96610504]
[1641764420663,36.77275586,142.59,142.48,3.83012492]
[1641764420861,36.77275586,142.59,142.5,0.25]
[1641764421963,36.77275586,142.59,142.48,3.83012492]
[1641764421964,36.77275586,142.59,142.49,0.25]
[1641764422363,36.77275586,142.59,142.47,79.94926802]
[1641764422765,47.29875586,142.59,142.47,90.47506802]
[1641764423364,47.29875586,142.59,142.47,86.6449431]
[1641764423564,36.52275586,142.59,142.47,86.7149431]
[1641764423763,36.52275586,142.59,142.5,0.02]
[1641764424165,36.52275586,142.59,142.5,0.04]
[1641764424364,36.52275586,142.59,142.5,0.29]
[1641764425065,0.25,142.58,142.49,9.8143]
[1641764425267,0.25,142.58,142.5,0.25]
[1641764428670,0.25,142.58,142.5,11.0335]
[1641764428970,0.25,142.58,142.51,0.51]
[1641764429169,3.0,142.59,142.51,2.36082586]
[1641764429369,105.6373,142.65,142.51,2.29082586]
[1641764429570,3.0,142.64,142.52,1.85082586]
[1641764429769,3.25,142.64,142.52,1.85082586]
[1641764429970,3.25,142.64,142.53,0.51]
[1641764430170,29.80521282,142.63,142.53,0.51]
[1641764430770,3.0,142.62,142.57,10.5185]
[1641764430971,3.0,142.62,142.58,0.25]
[1641764431172,29.80521282,142.63,142.58,0.25]
[1641764431875,0.26,142.62,142.58,0.25]
[1641764432774,0.26,142.62,142.55,10.5195]
[1641764432975,0.26,142.62,142.56,0.51]
[1641764433572,3.26,142.62,142.56,0.26]
[1641764433772,3.26,142.62,142.55,10.5195]
[1641764434873,3.26,142.62,142.56,0.25]
[1641764435273,3.26,142.62,142.55,10.5195]
[1641764435477,3.26,142.62,142.54,10.5207]
[1641764435874,3.26,142.62,142.55,0.25]
[1641764436674,3.26,142.62,142.55,10.7699]
[1641764436875,0.26,142.62,142.55,10.7699]
[1641764437275,0.51,142.62,142.55,10.7699]
[1641764437574,0.51,142.62,142.55,10.5199]
[1641764437777,3.51,142.62,142.56,0.25]
[1641764437978,3.01,142.62,142.54,10.5206]
[1641764438176,3.0,142.62,142.52,74.1835]
[1641764438376,9.94,142.61,142.52,74.1835]
[1641764438576,3.0,142.6,142.51,3.83012492]
[1641764438776,3.0,142.6,142.49,76.69762492]
[1641764439004,25.95136152,142.59,142.49,76.94762492]
[1641764439180,26.21136152,142.59,142.52,10.5221]
[1641764439378,3.0,142.58,142.53,0.25]
[1641764439676,9.94,142.63,142.5,42.85480824]
[1641764439875,0.26,142.62,142.51,0.51]
[1641764440076,3.26,142.62,142.51,0.51]
[1641764440278,3.26,142.62,142.52,3.83012492]
[1641764440479,3.26,142.62,142.53,0.51]
[1641764440676,25.21926973,142.61,142.53,11.031]
[1641764441079,3.0,142.6,142.53,11.031]
[1641764441677,0.26,142.59,142.53,11.031]
[1641764441880,3.0,142.6,142.54,4.2066223]
[1641764442579,3.0,142.6,142.54,0.25]
[1641764443380,25.21926973,142.61,142.54,0.25]
[1641764443782,12.94,142.6,142.53,3.83012492]
[1641764443983,13.45,142.6,142.53,3.83012492]
[1641764444783,13.45,142.6,142.5,3.96147123]
[1641764444784,23.9751,142.6,142.5,3.96147123]
[1641764445787,23.9751,142.6,142.5,7.79159615]
[1641764445989,23.9751,142.6,142.51,0.25]
[1641764446697,23.9751,142.6,142.5,0.25]
[1641764447088,23.9751,142.6,142.5,4.08012492]
[1641764447488,13.45,142.6,142.5,4.08012492]
[1641764447789,13.45,142.6,142.51,4.22607828]
[1641764448490,13.45,142.6,142.51,3.96607828]
[1641764448790,13.45,142.6,142.5,4.08012492]
[1641764449190,13.45,142.6,142.51,3.96603312]
[1641764449393,13.45,142.6,142.51,4.00603312]
[1641764450394,13.45,142.6,142.52,0.25]
[1641764451794,13.45,142.6,142.51,0.25]
[1641764452196,13.45,142.6,142.52,3.96637386]
[1641764453897,13.45,142.6,142.53,0.51]
[1641764453898,12.94,142.6,142.53,0.51]
[1641764454828,12.94,142.6,142.53,0.25]
[1641764455028,12.94,142.6,142.54,3.96637386]
[1641764455431,12.94,142.6,142.55,0.25]
[1641764456034,0.26,142.59,142.55,0.25]
[1641764456630,12.94,142.6,142.54,0.25]
[1641764458031,0.26,142.59,142.53,4.09012492]
[1641764458232,0.26,142.59,142.53,3.83012492]
[1641764458433,0.51,142.59,142.53,3.83012492]
[1641764458637,27.4066472,142.58,142.53,3.83012492]
[1641764458933,0.26,142.57,142.53,3.83012492]
[1641764459132,0.26,142.57,142.52,7.79779078]
[1641764459533,0.26,142.57,142.53,0.25]
[1641764460133,3.26,142.57,142.52,3.83012492]
[1641764460734,3.26,142.57,142.5,7.79779078]
[1641764461537,3.26,142.57,142.51,0.25]
[1641764461735,3.26,142.57,142.51,4.08012492]
[1641764461934,3.0,142.57,142.51,4.08012492]
[1641764462335,3.0,142.57,142.52,3.96766586]
[1641764462535,27.4066472,142.58,142.52,3.96766586]
[1641764462937,3.0,142.57,142.52,3.96766586]
[1641764464435,27.4066472,142.58,142.53,0.51]
[1641764464637,9.94,142.6,142.53,0.51]
[1641764465637,24.12257718,142.59,142.53,0.51]
[1641764465937,24.12257718,142.59,142.53,11.031]
[1641764466137,24.12257718,142.59,142.54,3.96945236]
[1641764467339,0.51,142.58,142.54,3.96945236]
[1641764467940,0.51,142.58,142.53,3.83012492]
[1641764467941,3.51,142.58,142.51,3.83012492]
[1641764468441,3.51,142.58,142.52,0.25]
[1641764469044,3.25,142.58,142.52,0.51]
[1641764469642,0.25,142.58,142.52,0.51]
[1641764470044,3.25,142.58,142.52,0.51]
[1641764470247,3.25,142.58,142.53,3.97037553]
[1641764470645,24.12257718,142.59,142.53,3.97037553]
[1641764470847,24.12257718,142.59,142.54,0.25]
[1641764471045,3.0,142.58,142.54,0.25]
[1641764471248,11.692,142.64,142.54,0.25]
[1641764471549,3.0,142.63,142.54,0.58]
[1641764471746,3.0,142.63,142.56,10.519]
[1641764471947,3.0,142.63,142.57,0.51]
[1641764472147,31.96737716,142.62,142.57,0.51]
[1641764472346,31.96737716,142.62,142.57,0.25]
[1641764472847,0.26,142.61,142.57,0.25]
[1641764473047,0.26,142.61,142.54,0.51]
[1641764473249,0.26,142.61,142.54,4.09012492]
[1641764473447,3.51,142.61,142.54,3.83012492]
[1641764473849,23.9741,142.61,142.52,3.97371824]
[1641764474448,13.45,142.61,142.52,3.97371824]
[1641764474647,13.45,142.61,142.53,0.25]
[1641764475651,13.2,142.61,142.53,0.25]
[1641764475851,13.2,142.61,142.52,0.51]
[1641764476059,12.94,142.61,142.52,0.51]
[1641764476252,0.25,142.6,142.52,0.51]
[1641764476453,0.25,142.6,142.52,11.0318]
[1641764476655,26.41014532,142.59,142.53,3.97375921]
[1641764476951,0.26,142.58,142.53,3.97375921]
[1641764477452,26.41014532,142.59,142.52,0.25]
[1641764477752,0.26,142.58,142.52,0.25]
[1641764477951,3.0,142.58,142.52,0.25]
[1641764478154,3.0,142.58,142.52,0.51]
[1641764478552,26.41014532,142.59,142.52,0.51]
[1641764478753,0.26,142.58,142.52,0.51]
[1641764479153,3.0,142.58,142.52,0.51]
[1641764481158,26.41014532,142.59,142.52,0.51]
[1641764481358,3.26,142.58,142.52,0.51]
[1641764481962,3.26,142.58,142.52,0.25]
[1641764482160,3.26,142.58,142.51,0.51]
[1641764482659,3.26,142.58,142.51,0.25]
[1641764483561,3.26,142.58,142.51,10.7728]
[1641764483762,26.41014532,142.59,142.52,0.26]
[1641764484869,0.26,142.58,142.52,0.26]
[1641764485069,3.26,142.58,142.52,0.26]
[1641764489404,3.26,142.58,142.51,10.7728]
[1641764490004,3.0,142.58,142.52,0.26]
[1641764490204,3.0,142.58,142.52,10.782]
[1641764490405,26.41014532,142.59,142.53,0.25]
[1641764490606,3.0,142.58,142.53,0.25]
[1641764491008,26.41014532,142.59,142.53,0.25]
[1641764491408,26.41014532,142.59,142.53,10.7713]
[1641764491607,26.41014532,142.59,142.53,10.5213]
[1641764491807,26.41014532,142.59,142.54,0.26]
[1641764496621,3.0,142.58,142.54,0.26]
[1641764497423,26.41014532,142.59,142.54,0.26]
[1641764500346,3.0,142.58,142.54,0.26]
[1641764501548,26.41014532,142.59,142.54,0.26]
[1641764501750,3.0,142.58,142.54,0.26]
[1641764501951,26.41014532,142.59,142.54,0.26]
[1641764502150,26.41014532,142.59,142.54,0.51]
[1641764502750,26.41014532,142.59,142.54,0.25]
[1641764502951,0.26,142.58,142.53,3.83012492]
[1641764503355,3.26,142.58,142.53,3.83012492]
[1641764503556,3.26,142.58,142.52,3.97790736]
[1641764503752,3.26,142.58,142.52,4.22790736]
[1641764504855,3.26,142.58,142.52,0.25]
[1641764505657,3.26,142.58,142.5,4.08012492]
[1641764506456,3.26,142.58,142.5,0.25]
[1641764506757,3.26,142.58,142.49,76.69762492]
[1641764506959,0.25,142.57,142.49,76.69762492]
[1641764507558,0.25,142.57,142.5,3.9777214]
[1641764508359,3.26,142.58,142.5,3.9777214]
[1641764508570,3.26,142.58,142.51,0.25]
[1641764508758,3.26,142.58,142.49,83.3918]
[1641764508959,3.26,142.58,142.5,0.25]
[1641764509259,3.26,142.58,142.5,4.22576154]
[1641764510288,3.0,142.58,142.5,4.22576154]
[1641764510460,36.35014532,142.59,142.5,14.74936154]
[1641764510660,36.35014532,142.59,142.51,0.26]
[1641764510862,3.0,142.58,142.51,0.26]
[1641764511263,3.0,142.58,142.52,1.98746695]
[1641764511462,3.0,142.58,142.53,0.25]
[1641764511863,3.0,142.58,142.53,2.23746695]
[1641764512562,23.7826,142.6,142.54,0.26]
[1641764512762,3.0,142.58,142.54,0.26]
[1641764512963,23.7826,142.6,142.54,0.26]
[1641764513365,22.90083075,142.59,142.54,0.26]
[1641764513566,22.90083075,142.59,142.54,2.24746695]
[1641764513766,22.90083075,142.59,142.55,10.5199]
[1641764513965,22.90083075,142.59,142.55,10.7699]
[1641764514571,3.0,142.58,142.55,10.7699]
[1641764514769,22.90083075,142.59,142.55,10.7699]
[1641764514971,3.0,142.58,142.55,10.7699]
[1641764515174,22.90083075,142.59,142.55,0.25]
[1641764517374,22.90083075,142.59,142.54,12.76806695]
[1641764517575,22.90083075,142.59,142.55,0.25]
[1641764517796,22.90083075,142.59,142.54,12.76806695]
[1641764518202,22.90083075,142.59,142.55,0.25]
[1641764522312,0.26,142.58,142.55,0.25]
[1641764523113,3.26,142.58,142.55,0.25]
[1641764523310,3.0,142.58,142.55,0.25]
[1641764523511,22.90083075,142.59,142.55,0.25]
[1641764524412,22.90083075,142.59,142.54,1.98746695]
[1641764524811,3.0,142.58,142.54,1.98746695]
[1641764525716,3.0,142.58,142.53,1.98746695]
[1641764525917,3.0,142.58,142.53,2.49746695]
[1641764526317,3.0,142.58,142.53,2.23746695]
[1641764527023,22.90083075,142.59,142.53,2.23746695]
[1641764527221,0.26,142.58,142.53,12.75876695]
[1641764527620,3.26,142.58,142.53,12.75876695]
[1641764528420,3.26,142.58,142.53,2.23746695]
[1641764528623,3.0,142.58,142.53,2.23746695]
[1641764528820,22.90083075,142.59,142.54,0.26]
[1641764529056,22.90083075,142.59,142.53,2.23746695]
[1641764529851,22.90083075,142.59,142.54,0.26]
[1641764531254,22.90083075,142.59,142.54,2.24746695]
[1641764531655,22.90083075,142.59,142.54,12.76816695]
[1641764532154,22.90083075,142.59,142.54,10.7807]
[1641764532752,22.90083075,142.59,142.54,12.76816695]
[1641764532953,22.90083075,142.59,142.54,2.24746695]
[1641764532954,3.0,142.58,142.54,2.24746695]
[1641764533354,3.0,142.58,142.54,0.26]
[1641764533752,3.0,142.58,142.53,0.26]
[1641764534554,10.533,142.58,142.52,1.98746695]
[1641764534954,0.26,142.57,142.52,1.98746695]
[1641764535554,0.26,142.57,142.51,1.98746695]
[1641764535754,0.26,142.57,142.51,2.24746695]
[1641764535955,0.26,142.57,142.51,1.98746695]
[1641764537058,0.51,142.57,142.51,1.98746695]
[1641764537259,0.51,142.57,142.52,1.98746695]
[1641764537459,34.6685,142.57,142.52,1.98746695]
[1641764537858,26.4288379,142.56,142.5,1.98746695]
[1641764538059,26.4288379,142.56,142.5,2.23746695]
[1641764538960,0.26,142.55,142.5,2.23746695]
[1641764540061,0.51,142.55,142.49,1.98746695]
[1641764540461,0.26,142.55,142.49,1.98746695]
[1641764540663,8.427,142.55,142.49,1.98746695]
[1641764540862,3.0,142.54,142.49,1.98746695]
[1641764541063,23.4288379,142.56,142.49,1.98746695]
[1641764541467,0.26,142.55,142.5,0.25]
[1641764541670,23.4288379,142.56,142.5,2.23746695]
[1641764541965,23.4288379,142.56,142.5,2.49746695]
[1641764542566,3.0,142.55,142.5,2.49746695]
[1641764543066,3.0,142.55,142.5,2.23746695]
[1641764543266,0.26,142.54,142.5,1.98746695]
[1641764544272,0.26,142.54,142.48,1.98746695]
[1641764544470,0.26,142.54,142.45,136.65912492]
[1641764544471,1.42012492,142.46,142.45,3.83012492]
[1641764544670,8.03312492,142.46,142.45,3.83012492]
[1641764544870,11.54312492,142.46,142.43,5.84517724]
[1641764545170,28.54538679,142.45,142.41,3.97084581]
[1641764545372,28.54538679,142.45,142.41,4.581e-05]
[1641764545574,28.29538679,142.45,142.41,4.581e-05]
[1641764545771,25.29538679,142.45,142.41,4.581e-05]
[1641764545971,25.29538679,142.45,142.32,78.6242]
[1641764546372,35.82958679,142.45,142.34,10.5348]
[1641764546572,12.94,142.44,142.34,10.5348]
[1641764546776,13.19,142.44,142.34,10.5348]
[1641764546974,0.26,142.43,142.34,10.5348]
[1641764547473,0.26,142.43,142.35,3.0]
[1641764547673,0.26,142.43,142.35,13.5346]
[1641764547901,12.94,142.44,142.35,13.5346]
[1641764548510,12.94,142.44,142.36,0.25]
[1641764548703,12.94,142.44,142.37,10.5326]
[1641764548906,12.94,142.44,142.38,0.51]
[1641764549305,9.94,142.44,142.38,0.51]
[1641764549703,9.94,142.44,142.38,0.25]
[1641764550303,9.94,142.44,142.35,0.07]
[1641764550906,9.94,142.44,142.38,10.5321]
[1641764551304,9.94,142.44,142.39,0.26]
[1641764551907,9.94,142.44,142.39,0.25]
[1641764552904,9.94,142.44,142.37,0.32]
[1641764553107,9.94,142.44,142.37,0.33]
[1641764553406,9.94,142.44,142.38,10.5324]
[1641764553806,9.94,142.44,142.39,0.26]
[1641764554510,9.94,142.44,142.38,10.5324]
[1641764554906,9.94,142.44,142.39,0.25]
[1641764555308,9.94,142.44,142.39,10.7817]
[1641764556011,9.94,142.44,142.4,0.26]
[1641764557511,9.94,142.44,142.39,0.3]
[1641764558011,9.94,142.44,142.39,0.04]
[1641764558211,0.51,142.43,142.39,0.04]
[1641764560713,0.26,142.43,142.39,0.04]
[1641764560910,3.0,142.43,142.39,0.04]
[1641764561512,9.94,142.44,142.39,0.04]
[1641764562514,0.25,142.43,142.39,0.04]
[1641764563513,0.51,142.43,142.39,0.04]
[1641764563913,3.51,142.43,142.39,0.04]
[1641764564718,21.278,142.43,142.39,0.04]
[1641764564919,1.754,142.42,142.39,0.04]
[1641764565118,21.8729,142.43,142.39,0.04]
[1641764565319,3.51,142.41,142.39,0.04]
[1641764565618,3.26,142.4,142.39,0.04]
[1641764567420,3.51,142.4,142.39,0.04]
[1641764568122,3.26,142.4,142.39,0.04]
[1641764568323,3.51,142.4,142.39,0.04]
[1641764568923,14.0474,142.4,142.39,0.04]
[1641764569522,13.7974,142.4,142.39,0.04]
[1641764571526,14.0474,142.4,142.39,0.04]
[1641764572228,13.7974,142.4,142.39,0.04]
[1641764572826,14.0474,142.4,142.39,0.04]
[1641764576928,171.4474,142.4,142.39,0.04]
[1641764577832,181.3874,142.4,142.39,0.04]
[1641764578031,183.1414,142.4,142.39,0.04]
[1641764578232,181.3874,142.4,142.39,0.04]
[1641764581434,181.1274,142.4,142.39,0.04]
[1641764582837,181.3874,142.4,142.39,0.04]
[1641764584335,181.1374,142.4,142.39,0.04]
[1641764586439,181.3874,142.4,142.39,0.04]
[1641764588243,0.02,142.39,142.28,75.8288]
[1641764588448,157.4,142.36,142.28,75.8288]
[1641764588641,165.218,142.36,142.28,75.8288]
[1641764588840,3.51,142.35,142.28,75.8288]
[1641764589265,25.16239311,142.34,142.28,75.8288]
[1641764589464,3.26,142.33,142.28,0.1]
[1641764589965,0.26,142.33,142.28,0.1]
[1641764590367,3.26,142.33,142.28,0.1]
[1641764590568,27.7191,142.33,142.28,0.1]
[1641764590769,38.2614,142.33,142.28,0.1]
[1641764591171,48.2014,142.33,142.28,0.1]
[1641764591668,48.2014,142.33,142.28,0.12]
[1641764592369,10.5455,142.3,142.28,0.12]
[1641764592569,3.0,142.29,142.28,0.12]
[1641764592768,3.26,142.29,142.28,0.12]
[1641764592969,160.66,142.29,142.28,0.12]
[1641764593371,171.2062,142.29,142.28,0.14]
[1641764594372,181.3962,142.29,142.28,0.14]
[1641764594572,36.0,142.28,142.23,0.07962902]
[1641764594773,10.548,142.26,142.23,0.07962902]
[1641764594972,0.26,142.25,142.23,0.07962902]
[1641764595173,28.00330033,142.25,142.23,0.07962902]
[1641764595975,38.55150033,142.25,142.23,0.07962902]
[1641764596173,28.00330033,142.25,142.23,0.07962902]
[1641764596374,27.74330033,142.25,142.23,0.07962902]
[1641764596872,38.29150033,142.25,142.23,0.07962902]
[1641764597280,39.25,142.24,142.23,0.07962902]
[1641764597478,13.19,142.24,142.23,0.07962902]
[1641764597678,13.2,142.24,142.23,0.07962902]
[1641764597878,12.94,142.24,142.23,0.07962902]
[1641764598081,167.34,142.24,142.23,0.07962902]
[1641764598982,177.8889,142.24,142.23,0.07962902]
[1641764599381,178.1489,142.24,142.23,0.07962902]
[1641764599582,167.6,142.24,142.23,0.07962902]
[1641764601086,192.3637,142.24,142.23,0.07962902]
[1641764601686,195.3637,142.24,142.23,0.07962902]
[1641764602087,192.3637,142.24,142.23,0.07962902]
[1641764602587,195.3637,142.24,142.23,0.07962902]
[1641764603786,195.6137,142.24,142.23,0.07962902]
[1641764603988,206.1626,142.24,142.23,0.00962902]
[1641764606601,207.9186,142.24,142.23,0.00962902]
[1641764609225,197.6686,142.24,142.23,0.00962902]
[1641764610024,195.8726,142.24,142.23,0.00962902]
[1641764610426,195.8726,142.24,142.1,89.2971]
[1641764610427,330.0526,142.24,142.1,78.9459]
[1641764610633,3.26,142.23,142.1,78.4459]
[1641764610827,10.5538,142.18,142.1,78.4459]
[1641764611030,157.3,142.14,142.1,88.9991]
[1641764611230,157.3,142.14,142.1,10.5532]
[1641764611529,183.16337474,142.14,142.1,10.5532]
[1641764611930,155.22340209,142.14,142.1,10.5532]
[1641764612128,155.26337474,142.14,142.04,35.890722]
[1641764612328,155.26337474,142.14,142.04,23.9225]
[1641764612729,155.26337474,142.14,142.04,25.70332586]
[1641764613530,155.26337474,142.14,142.07,10.5549]
[1641764613734,0.26,142.13,142.05,24.1273]
[1641764613931,129.4,142.09,142.05,24.1273]
[1641764614131,129.4,142.09,142.04,0.1]
[1641764614531,129.4,142.09,142.06,10.5554]
[1641764614732,129.4,142.09,142.07,6.06439991]
[1641764615932,129.4,142.09,142.08,0.25]
[1641764616231,9.94,142.17,142.09,19.56]
[1641764616434,9.94,142.19,142.1,0.26]
[1641764616832,9.94,142.19,142.1,10.8122]
[1641764617032,22.42948322,142.18,142.1,10.8122]
[1641764617933,32.98238322,142.18,142.1,10.5522]
[1641764618132,32.98238322,142.18,142.09,74.6072]
[1641764618332,32.7365,142.17,142.09,74.6072]
[1641764618532,35.7465,142.17,142.09,74.6072]
[1641764619635,10.8045,142.16,142.09,74.6072]
[1641764619836,10.5545,142.16,142.09,72.8492]
[1641764620234,0.26,142.15,142.09,72.8492]
[1641764620433,0.26,142.15,142.05,26.7312]
[1641764620634,11.0652,142.15,142.06,10.5552]
[1641764620832,10.5552,142.15,142.06,10.8052]
[1641764621035,0.26,142.14,142.06,10.8052]
[1641764621634,35.4865,142.17,142.06,10.8052]
[1641764621838,32.4865,142.17,142.07,1.758]
[1641764622035,32.4865,142.17,142.09,10.5534]
[1641764622834,0.25,142.16,142.09,10.5534]
[1641764623038,2.37928614,142.17,142.09,10.5534]
[1641764623237,13.14113956,142.36,142.25,39.23543902]
[1641764623438,5.80672017,142.36,142.32,0.30947128]
[1641764623635,9.60461551,142.45,142.33,1.754]
[1641764623838,7.1655404,142.5,142.33,1.754]
[1641764624040,11.694,142.45,142.3,2.0]
[1641764624236,28.6785518,142.44,142.33,10.5357]
[1641764624438,28.6785518,142.44,142.35,124.24]
[1641764624639,28.6785518,142.44,142.36,9.94]
[1641764624935,28.6785518,142.44,142.37,124.24]
[1641764625138,28.6785518,142.44,142.38,9.94]
[1641764626137,28.6785518,142.44,142.38,4.35]
[1641764626340,28.6785518,142.44,142.3,126.24]
[1641764626341,1.754,142.43,142.3,136.7779]
[1641764626540,1.754,142.43,142.31,9.94]
[1641764626738,0.25,142.42,142.31,9.94]
[1641764626939,30.43297304,142.4,142.31,9.94]
[1641764627141,1.756,142.39,142.31,9.94]
[1641764627338,3.51,142.39,142.31,9.94]
[1641764627739,5.266,142.39,142.31,9.94]
[1641764628839,3.51,142.39,142.31,9.94]
[1641764629640,5.266,142.39,142.31,9.94]
[1641764630746,3.51,142.39,142.31,9.94]
[1641764631548,3.25,142.39,142.31,9.94]
[1641764631747,5.006,142.39,142.31,9.94]
[1641764632047,5.006,142.39,142.28,1.756]
[1641764632546,5.006,142.39,142.28,12.2958]
[1641764632948,0.26,142.38,142.28,12.2958]
[1641764633349,0.26,142.38,142.28,1.756]
[1641764633749,0.26,142.38,142.27,9.94]
[1641764634078,1.756,142.37,142.27,9.94]
[1641764634277,29.31910292,142.36,142.27,9.94]
[1641764634478,32.82910292,142.36,142.27,9.94]
[1641764636377,32.82910292,142.36,142.27,20.4806]
[1641764636878,32.56910292,142.36,142.27,20.4806]
[1641764637776,3.25,142.36,142.27,20.4806]
[1641764637979,0.25,142.36,142.27,20.4806]
[1641764638182,0.25,142.36,142.27,10.4806]
[1641764638381,2.266,142.4,142.27,10.4806]
[1641764638580,3.0,142.39,142.28,9.94]
[1641764638780,3.0,142.39,142.28,20.4795]
[1641764638981,30.39999947,142.4,142.29,0.26]
[1641764639189,1.756,142.39,142.3,9.94]
[1641764639383,30.39999947,142.4,142.31,0.26]
[1641764639580,30.39999947,142.4,142.31,10.45]
[1641764639782,30.39999947,142.4,142.34,10.5354]
[1641764640783,0.25,142.39,142.32,12.2915]
[1641764640983,0.25,142.39,142.32,10.5365]
[1641764641184,30.39999947,142.4,142.32,10.5365]
[1641764641483,0.26,142.39,142.32,10.5365]